[Event "NOR-chT Eliteserien 2018-19"]
[Site "Norway"]
[Date "2019.03.09"]
[Round "8.14"]
[White "Romanov, Evgeny"]
[Black "Hansen, Torbjorn Ringdal"]
[Result "0-1"]
[ECO "E11"]
[WhiteElo "2612"]
[BlackElo "2419"]
[Annotator "ChessBase"]
[PlyCount "98"]
[EventDate "2018.11.02"]
[EventType "team-tourn"]
[EventCountry "NOR"]
[SourceTitle "playchess.com"]
[Source "ChessBase"]
[SourceQuality "1"]
[TimeControl "40/5400+30:1800+30"]

1. d4 {[%emt 0:00:00]} Nf6 {[%emt 0:00:00]} 2. c4 {[%emt 0:00:09]} e6 {[%emt 0:00:22]} 3. Nf3 {[%emt 0:01:11]} Bb4+ {[%emt 0:01:02]} 4. Bd2 {[%emt 0:01:16]} c5 {[%emt 0:00:50]} 5. Bxb4 {[%emt 0:01:26]} cxb4 {[%emt 0:00:08]} 6. e3 {[%emt 0:00:16]} b6 {[%emt 0:03:22]} 7. Bd3 {[%emt 0:01:56]} Bb7 {[%emt 0:00:39]} 8. Nbd2 {[%emt 0:00:43]} O-O {[%emt 0:01:46]} 9. Qc2 {[%emt 0:00:59]} d5 {[%emt 0:06:06]} 10. cxd5 {[%emt 0:08:41]} exd5 {[%emt 0:00:54]} 11. Ne5 {[%emt 0:04:47]} a5 {[%emt 0:12:56]} 12. O-O {[%emt 0:10:27]} Nbd7 {[%emt 0:08:05]} 13. Nxd7 {[%emt 0:05:42]} Qxd7 {[%emt 0:00:27]} 14. Bf5 {[%emt 0:00:10]} Qd6 {[%emt 0:09:51]} 15. Rfc1 {[%emt 0:00:09]} g6 {[%emt 0:01:11]} 16. Bh3 {[%emt 0:21:03]} Ne8 {[%emt 0:05:27]} 17. a3 {[%emt 0:09:16]} f5 {[%emt 0:04:06]} 18. g3 {[%emt 0:02:43]} bxa3 {[%emt 0:09:58]} 19. bxa3 {[%emt 0:00:17]} Rc8 {[%emt 0:00:19]} 20. Qb3 {[%emt 0:00:19]} Nf6 {[%emt 0:02:56]} 21. Rxc8 {[%emt 0:01:58]} Bxc8 {[%emt 0:04:23]} 22. Rb1 {[%emt 0:01:10]} f4 {[%emt 0:03:44]} 23. Bxc8 {[%emt 0:02:24]} fxe3 {[%emt 0:00:36]} 24. fxe3 {[%emt 0:07:20]} Rxc8 {[%emt 0:00:08]} 25. e4 {[%emt 0:00:24]} a4 {[%emt 0:04:40]} 26. Qa2 {[%emt 0:00:30]} Qe6 {[%emt 0:02:36]} 27. e5 {[%emt 0:00:15]} Ng4 {[%emt 0:04:09]} 28. Nf3 {[%emt 0:07:55]} Ne3 {[%emt 0:02:28]} 29. Qe2 {[%emt 0:03:38]} Rc3 {[%emt 0:01:17]} 30. Qd2 {[%emt 0:02:01]} Qh3 {[%emt 0:04:41]} 31. e6 {[%emt 0:01:49]} Rb3 {[%emt 0:00:18]} 32. Re1 {[%emt 0:01:45]} Qxe6 {[%emt 0:00:31]} 33. h3 {[%emt 0:02:11]} Qe4 {[%emt 0:02:52]} 34. Qf2 {[%emt 0:01:10]} Rb1 {[%emt 0:01:04]} 35. Rxb1 {[%emt 0:00:53]} Qxb1+ {[%emt 0:00:08]} 36. Kh2 {[%emt 0:00:02]} Qc2 {[%emt 0:00:41]} 37. Kg1 {[%emt 0:00:15]} Qxf2+ {[%emt 0:01:27]} 38. Kxf2 {[%emt 0:00:01]} Nc2 {[%emt 0:00:07]} 39. Ke2 {[%emt 0:00:45]} Nxa3 {[%emt 0:00:19]} 40. Kd3 {[%emt 0:00:03]} Nc4 {[%emt 0:00:26]} 41. Kc3 {[%emt 0:30:13]} h6 {[%emt 0:30:58]} 42. Ne1 {[%emt 0:00:24]} Kf7 {[%emt 0:00:30]} 43. Nd3 {[%emt 0:00:36]} g5 {[%emt 0:01:31]} 44. g4 {[%emt 0:01:22]} Ke6 {[%emt 0:00:40]} 45. Nc1 {[%emt 0:00:37]} Na5 {[%emt 0:01:10]} 46. Ne2 {[%emt 0:00:00]} Nc6 {[%emt 0:00:00]} 47. Ng3 {[%emt 0:00:00]} b5 {[%emt 0:00:00]} 48. Nf5 {[%emt 0:00:00]} b4+ {[%emt 0:00:00]} 49. Kb2 {[%emt 0:00:00]} Na5 {[%emt 0:00:00]} 0-1

[Event "NOR-chT Eliteserien 2018-19"]
[Site "Norway"]
[Date "2019.03.09"]
[Round "8.17"]
[White "Vitenberg, Noam Aviv"]
[Black "Holm, Kristian Stuvik"]
[Result "0-1"]
[ECO "A34"]
[WhiteElo "2139"]
[BlackElo "2468"]
[Annotator "ChessBase"]
[PlyCount "132"]
[EventDate "2018.11.02"]
[EventType "team-tourn"]
[EventCountry "NOR"]
[SourceTitle "playchess.com"]
[Source "ChessBase"]
[SourceQuality "1"]
[TimeControl "40/5400+30:1800+30"]

1. c4 {[%emt 0:00:00]} g6 {[%emt 0:00:26]} 2. Nf3 {[%emt 0:03:10]} Bg7 {[%emt 0:00:12]} 3. Nc3 {[%emt 0:01:49]} c5 {[%emt 0:00:08]} 4. g3 {[%emt 0:10:17]} Nc6 {[%emt 0:00:09]} 5. e3 {[%emt 0:06:20]} Nf6 {[%emt 0:06:26]} 6. d4 {[%emt 0:21:29]} cxd4 {[%emt 0:05:28]} 7. Nxd4 {[%emt 0:00:47]} Ne5 {[%emt 0:02:54]} 8. f4 {[%emt 0:05:54]} Nc6 {[%emt 0:00:36]} 9. Bg2 {[%emt 0:01:24]} O-O {[%emt 0:01:54]} 10. O-O {[%emt 0:01:09]} Qa5 {[%emt 0:00:35]} 11. a3 {[%emt 0:06:40]} d6 {[%emt 0:03:02]} 12. b4 {[%emt 0:07:01]} Qb6 {[%emt 0:06:26]} 13. Bb2 {[%emt 0:02:27]} Bg4 {[%emt 0:00:54]} 14. Qd2 {[%emt 0:04:01]} Rfc8 {[%emt 0:01:27]} 15. Nxc6 {[%emt 0:03:03]} bxc6 {[%emt 0:01:13]} 16. c5 {[%emt 0:01:02]} dxc5 {[%emt 0:02:12]} 17. Na4 {[%emt 0:01:13]} Qb5 {[%emt 0:00:37]} 18. Nxc5 {[%emt 0:00:43]} a5 {[%emt 0:00:22]} 19. h3 {[%emt 0:08:03]} Rd8 {[%emt 0:02:38]} 20. Qc2 {[%emt 0:01:10]} Bf5 {[%emt 0:08:32]} 21. e4 {[%emt 0:03:19]} Bc8 {[%emt 0:01:52]} 22. Rfb1 {[%emt 0:01:41]} axb4 {[%emt 0:02:58]} 23. axb4 {[%emt 0:00:46]} Rxa1 {[%emt 0:02:07]} 24. Bxa1 {[%emt 0:00:10]} h5 {[%emt 0:02:47]} 25. Kh2 {[%emt 0:01:14]} Bh6 {[%emt 0:04:41]} 26. Qf2 {[%emt 0:03:21]} Ne8 {[%emt 0:12:19]} 27. f5 {[%emt 0:02:29]} Rd2 {[%emt 0:01:36]} 28. Qf3 {[%emt 0:01:24]} Qe2 {[%emt 0:04:59]} 29. Qxe2 {[%emt 0:00:13]} Rxe2 {[%emt 0:00:01]} 30. fxg6 {[%emt 0:01:28]} fxg6 {[%emt 0:00:13]} 31. b5 {[%emt 0:01:04]} cxb5 {[%emt 0:07:38]} 32. Rxb5 {[%emt 0:00:13]} Bg7 {[%emt 0:02:51]} 33. Rb8 {[%emt 0:00:42]} Bxa1 {[%emt 0:01:08]} 34. Rxc8 {[%emt 0:00:05]} Kf7 {[%emt 0:00:05]} 35. Nb3 {[%emt 0:01:01]} Be5 {[%emt 0:00:41]} 36. Nc1 {[%emt 0:00:27]} Re3 {[%emt 0:00:24]} 37. Rc2 {[%emt 0:00:39]} Bxg3+ {[%emt 0:00:25]} 38. Kg1 {[%emt 0:00:06]} Re1+ {[%emt 0:00:25]} 39. Bf1 {[%emt 0:00:03]} Rxe4 {[%emt 0:00:24]} 40. Kg2 {[%emt 0:00:23]} Bd6 {[%emt 0:01:17]} 41. Bc4+ {[%emt 0:03:17]} Kg7 {[%emt 0:00:22]} 42. Bd3 {[%emt 0:00:46]} Rd4 {[%emt 0:00:21]} 43. Re2 {[%emt 0:12:09]} Nf6 {[%emt 0:00:29]} 44. Kg1 {[%emt 0:07:30]} Ba3 {[%emt 0:05:13]} 45. Bc2 {[%emt 0:02:40]} Bxc1 {[%emt 0:00:23]} 46. Rxe7+ {[%emt 0:00:04]} Kh6 {[%emt 0:00:16]} 47. Re6 {[%emt 0:00:20]} Bg5 {[%emt 0:00:08]} 48. Rc6 {[%emt 0:00:28]} Rd2 {[%emt 0:00:47]} 49. Kh1 {[%emt 0:00:53]} Kg7 {[%emt 0:02:02]} 50. Rc7+ {[%emt 0:01:10]} Kh6 {[%emt 0:01:01]} 51. Rc6 {[%emt 0:00:08]} Rf2 {[%emt 0:00:23]} 52. Kg1 {[%emt 0:01:01]} Rf4 {[%emt 0:00:09]} 53. Kg2 {[%emt 0:01:08]} Bh4 {[%emt 0:00:05]} 54. Bd3 {[%emt 0:00:24]} Rf2+ {[%emt 0:00:16]} 55. Kg1 {[%emt 0:00:07]} Rf3 {[%emt 0:00:04]} 56. Bf1 {[%emt 0:00:16]} Ng8 {[%emt 0:01:59]} 57. Rc4 {[%emt 0:00:28]} Bf6 {[%emt 0:00:16]} 58. Kg2 {[%emt 0:00:22]} Rc3 {[%emt 0:00:28]} 59. Ra4 {[%emt 0:00:46]} Ne7 {[%emt 0:00:54]} 60. Ra6 {[%emt 0:00:19]} Nd5 {[%emt 0:00:05]} 61. Bb5 {[%emt 0:00:30]} Nf4+ {[%emt 0:00:36]} 62. Kf1 {[%emt 0:00:10]} Bh4 {[%emt 0:00:23]} 63. Ra1 {[%emt 0:00:27]} Rxh3 {[%emt 0:00:49]} 64. Kg1 {[%emt 0:00:03]} Bf6 {[%emt 0:01:29]} 65. Rd1 {[%emt 0:00:15]} h4 {[%emt 0:00:13]} 66. Bd7 {[%emt 0:00:29]} Rd3 {[%emt 0:00:09]} 0-1

[Event "NOR-chT Eliteserien 2018-19"]
[Site "Norway"]
[Date "2019.03.09"]
[Round "8.18"]
[White "Kaasen, Tor Fredrik"]
[Black "Lindbol, Aleksander"]
[Result "1-0"]
[ECO "A81"]
[WhiteElo "2409"]
[BlackElo "2204"]
[Annotator "NA"]
[PlyCount "80"]
[EventDate "2018.11.02"]
[EventType "team-tourn"]
[EventCountry "NOR"]
[SourceTitle "playchess.com"]
[Source "ChessBase"]
[SourceQuality "1"]
[TimeControl "40/5400+30:1800+30"]

1. d4 {[%emt 0:00:00]} f5 {[%emt 0:00:21]} 2. g3 {[%emt 0:00:50]} e6 {[%emt 0:00:47]} 3. Bg2 {[%emt 0:00:22]} Nf6 {[%emt 0:00:52]} 4. Nf3 {[%emt 0:00:38]} d5 {[%emt 0:01:12]} 5. O-O {[%emt 0:01:03]} Bd6 {[%emt 0:01:03]} 6. b3 {[%emt 0:02:06]} Qe7 {[%emt 0:00:59]} 7. a4 {[%emt 0:00:52]} a5 {[%emt 0:01:10]} 8. Ba3 {[%emt 0:00:34]} O-O {[%emt 0:01:08]} 9. c4 {[%emt 0:01:32]} c6 {[%emt 0:00:56]} 10. Qc1 {[%emt 0:02:29]} b6 {[%emt 0:04:37]} 11. Bxd6 {[%emt 0:04:06]} Qxd6 {[%emt 0:00:05]} 12. Qa3 {[%emt 0:00:19]} Qxa3 {[%emt 0:02:43]} 13. Nxa3 {[%emt 0:00:19]} Bb7 {[%emt 0:03:28]} 14. Rfc1 {[%emt 0:08:24]} Nbd7 {[%emt 0:20:14]} 15. Nc2 {[%emt 0:09:01]} Ne4 {[%emt 0:13:16]} 16. Nce1 {[%emt 0:01:22]} Rac8 {[%emt 0:08:11]} 17. Nd3 {[%emt 0:00:51]} c5 {[%emt 0:06:18]} 18. e3 {[%emt 0:02:23]} g5 {[%emt 0:04:44]} 19. Rc2 {[%emt 0:02:22]} cxd4 {[%emt 0:08:18]} 20. exd4 {[%emt 0:00:52]} Rfd8 {[%emt 0:03:24]} 21. Rac1 {[%emt 0:03:37]} dxc4 {[%emt 0:06:00]} 22. bxc4 {[%emt 0:01:03]} Ba6 {[%emt 0:00:21]} 23. h4 {[%emt 0:09:01]} h6 {[%emt 0:02:11]} 24. hxg5 {[%emt 0:02:27]} hxg5 {[%emt 0:00:05]} 25. Nb2 {[%emt 0:00:59]} g4 {[%emt 0:02:44]} 26. Nh4 {[%emt 0:00:43]} Ndf6 {[%emt 0:01:19]} 27. d5 {[%emt 0:00:32]} exd5 {[%emt 0:01:52]} 28. Nxf5 {[%emt 0:01:52]} Kf8 {[%emt 0:03:10]} 29. Ne3 {[%emt 0:05:23]} dxc4 {[%emt 0:01:53]} 30. Nbxc4 {[%emt 0:00:28]} Bxc4 {[%emt 0:00:24]} 31. Rxc4 {[%emt 0:00:06]} Rxc4 {[%emt 0:00:16]} 32. Rxc4 {[%emt 0:00:06]} Nc5 {[%emt 0:01:22]} 33. Bf1 {[%emt 0:06:06]} Rd2 {[%emt 0:00:34]} 34. Rf4 {[%emt 0:01:48]} Ke7 {[%emt 0:00:29]} 35. Nc4 {[%emt 0:00:33]} Ra2 {[%emt 0:00:33]} 36. Nxb6 {[%emt 0:00:18]} Ne6 {[%emt 0:00:13]} 37. Nc8+ {[%emt 0:02:39]} Kf7 {[%emt 0:00:18]} 38. Bc4 {[%emt 0:00:09]} Rd2 {[%emt 0:00:52]} 39. Rf5 {[%emt 0:00:58]} Rc2 {[%emt 0:00:30]} 40. Rxa5 {[%emt 0:00:39]} Ne8 {[%emt 0:00:36]} 1-0

[Event "NOR-chT Eliteserien 2018-19"]
[Site "Norway"]
[Date "2019.03.09"]
[Round "8.20"]
[White "Risting, Eivind Olav"]
[Black "Djurhuus, Rune"]
[Result "1-0"]
[ECO "E91"]
[WhiteElo "2281"]
[BlackElo "2457"]
[Annotator "ChessBase"]
[PlyCount "119"]
[EventDate "2018.11.02"]
[EventType "team-tourn"]
[EventCountry "NOR"]
[SourceTitle "playchess.com"]
[Source "ChessBase"]
[SourceQuality "1"]
[TimeControl "40/5400+30:1800+30"]

1. d4 {[%emt 0:00:00]} Nf6 {[%emt 0:01:15]} 2. c4 {[%emt 0:00:00]} Nc6 {[%emt 0:00:48]} 3. Nf3 {[%emt 0:00:33]} d6 {[%emt 0:00:21]} 4. Nc3 {[%emt 0:01:07]} g6 {[%emt 0:00:51]} 5. d5 {[%emt 0:11:39]} Nb8 {[%emt 0:00:58]} 6. e4 {[%emt 0:01:30]} Bg7 {[%emt 0:00:02]} 7. Be2 {[%emt 0:00:35]} O-O {[%emt 0:00:09]} 8. O-O {[%emt 0:00:36]} c6 {[%emt 0:01:02]} 9. Be3 {[%emt 0:04:18]} Bg4 {[%emt 0:04:39]} 10. Re1 {[%emt 0:04:25]} Nbd7 {[%emt 0:02:53]} 11. Rc1 {[%emt 0:04:35]} a6 {[%emt 0:02:44]} 12. b4 {[%emt 0:06:17]} Rc8 {[%emt 0:01:37]} 13. Qb3 {[%emt 0:06:44]} cxd5 {[%emt 0:15:18]} 14. exd5 {[%emt 0:09:48]} Rc7 {[%emt 0:03:46]} 15. a4 {[%emt 0:02:38]} b6 {[%emt 0:07:32]} 16. h3 {[%emt 0:11:25]} Bxf3 {[%emt 0:01:19]} 17. Bxf3 {[%emt 0:00:02]} Qb8 {[%emt 0:00:30]} 18. Be2 {[%emt 0:04:48]} Qb7 {[%emt 0:01:03]} 19. Bf1 {[%emt 0:02:14]} Rfc8 {[%emt 0:00:39]} 20. Bd4 {[%emt 0:01:20]} Kf8 {[%emt 0:01:45]} 21. f4 {[%emt 0:01:51]} Nh5 {[%emt 0:01:31]} 22. Be3 {[%emt 0:03:27]} Ng3 {[%emt 0:12:36]} 23. Bd3 {[%emt 0:07:12]} Nf5 {[%emt 0:01:35]} 24. Bf2 {[%emt 0:02:27]} Nd4 {[%emt 0:00:53]} 25. Qd1 {[%emt 0:01:13]} b5 {[%emt 0:01:55]} 26. Bf1 {[%emt 0:01:38]} Rxc4 {[%emt 0:10:35]} 27. Bxc4 {[%emt 0:00:10]} Rxc4 {[%emt 0:00:01]} 28. axb5 {[%emt 0:01:33]} axb5 {[%emt 0:02:09]} 29. Ne2 {[%emt 0:03:22]} Nxe2+ {[%emt 0:07:45]} 30. Qxe2 {[%emt 0:00:12]} Nb6 {[%emt 0:00:12]} 31. Rxc4 {[%emt 0:02:47]} Nxc4 {[%emt 0:04:44]} 32. Kh1 {[%emt 0:01:19]} Bf6 {[%emt 0:03:01]} 33. Qe4 {[%emt 0:00:29]} h5 {[%emt 0:05:48]} 34. g4 {[%emt 0:01:59]} hxg4 {[%emt 0:01:28]} 35. hxg4 {[%emt 0:00:01]} Qd7 {[%emt 0:01:55]} 36. Qf3 {[%emt 0:00:15]} g5 {[%emt 0:01:19]} 37. Kg2 {[%emt 0:01:19]} gxf4 {[%emt 0:00:16]} 38. Qxf4 {[%emt 0:00:11]} Ne5 {[%emt 0:00:23]} 39. Qf5 {[%emt 0:00:54]} Qxf5 {[%emt 0:01:35]} 40. gxf5 {[%emt 0:00:01]} Nd3 {[%emt 0:00:09]} 41. Re4 {[%emt 0:07:32]} Be5 {[%emt 0:17:38]} 42. Bg3 {[%emt 0:03:34]} Kg7 {[%emt 0:01:13]} 43. Kf3 {[%emt 0:04:19]} Kf6 {[%emt 0:05:56]} 44. Kg4 {[%emt 0:02:18]} Bxg3 {[%emt 0:02:50]} 45. Kxg3 {[%emt 0:00:11]} Ne5 {[%emt 0:01:41]} 46. Kf4 {[%emt 0:01:08]} Nd3+ {[%emt 0:00:41]} 47. Ke3 {[%emt 0:00:25]} Ne5 {[%emt 0:00:04]} 48. Rh4 {[%emt 0:03:50]} Kxf5 {[%emt 0:01:09]} 49. Rh8 {[%emt 0:00:11]} Nd7 {[%emt 0:01:05]} 50. Kd4 {[%emt 0:01:42]} e5+ {[%emt 0:02:48]} 51. dxe6 {[%emt 0:00:14]} fxe6 {[%emt 0:00:17]} 52. Rd8 {[%emt 0:04:40]} e5+ {[%emt 0:00:04]} 53. Kd5 {[%emt 0:00:16]} Nf6+ {[%emt 0:00:05]} 54. Kxd6 {[%emt 0:00:19]} e4 {[%emt 0:00:09]} 55. Rf8 {[%emt 0:01:41]} Kg5 {[%emt 0:00:30]} 56. Ke6 {[%emt 0:00:33]} Ng4 {[%emt 0:00:32]} 57. Rf5+ {[%emt 0:01:29]} Kh4 {[%emt 0:00:01]} 58. Rf4 {[%emt 0:00:46]} Kg3 {[%emt 0:01:50]} 59. Rxe4 {[%emt 0:00:07]} Kf3 {[%emt 0:00:02]} 60. Rxg4 {[%emt 0:01:36]} 1-0

[Event "NOR-chT Eliteserien 2018-19"]
[Site "Norway"]
[Date "2019.03.09"]
[Round "8.21"]
[White "Haug, Johannes"]
[Black "Dahl, Trygve"]
[Result "1-0"]
[ECO "B27"]
[WhiteElo "2402"]
[BlackElo "2342"]
[Annotator "NA"]
[PlyCount "77"]
[EventDate "2018.11.02"]
[EventType "team-tourn"]
[EventCountry "NOR"]
[SourceTitle "playchess.com"]
[Source "ChessBase"]
[SourceQuality "1"]
[TimeControl "40/5400+30:1800+30"]

1. e4 {[%emt 0:00:00]} c5 {[%emt 0:00:00]} 2. Nf3 {[%emt 0:00:00]} g6 {[%emt 0:00:00]} 3. d4 {[%emt 0:01:01]} cxd4 {[%emt 0:00:00]} 4. Qxd4 {[%emt 0:00:05]} Nf6 {[%emt 0:00:00]} 5. Nc3 {[%emt 0:00:19]} Nc6 {[%emt 0:00:24]} 6. Qa4 {[%emt 0:00:23]} d6 {[%emt 0:01:02]} 7. e5 {[%emt 0:00:20]} dxe5 {[%emt 0:00:31]} 8. Nxe5 {[%emt 0:00:11]} Qd4 {[%emt 0:04:28]} 9. Nxc6 {[%emt 0:00:12]} Qxa4 {[%emt 0:00:05]} 10. Nxa4 {[%emt 0:00:06]} bxc6 {[%emt 0:00:05]} 11. Be3 {[%emt 0:01:07]} Bg7 {[%emt 0:02:00]} 12. O-O-O {[%emt 0:01:53]} O-O {[%emt 0:06:54]} 13. Bc4 {[%emt 0:04:41]} Nd5 {[%emt 0:01:03]} 14. Rxd5 {[%emt 0:20:13]} cxd5 {[%emt 0:00:11]} 15. Bxd5 {[%emt 0:00:02]} Rb8 {[%emt 0:01:43]} 16. Bxa7 {[%emt 0:00:56]} Rb4 {[%emt 0:03:19]} 17. b3 {[%emt 0:02:06]} Bb7 {[%emt 0:05:48]} 18. Bxb7 {[%emt 0:12:56]} Rxb7 {[%emt 0:00:02]} 19. Be3 {[%emt 0:00:07]} Ra8 {[%emt 0:02:47]} 20. c4 {[%emt 0:09:21]} Rxa4 {[%emt 0:07:20]} 21. bxa4 {[%emt 0:02:13]} Rb4 {[%emt 0:02:14]} 22. Kc2 {[%emt 0:06:18]} Rxc4+ {[%emt 0:08:10]} 23. Kb3 {[%emt 0:00:14]} Rc3+ {[%emt 0:00:05]} 24. Kb4 {[%emt 0:00:08]} Rc2 {[%emt 0:00:35]} 25. Rc1 {[%emt 0:11:13]} Rb2+ {[%emt 0:01:16]} 26. Ka3 {[%emt 0:00:50]} Rb8 {[%emt 0:00:10]} 27. Rc2 {[%emt 0:00:47]} e5 {[%emt 0:03:58]} 28. a5 {[%emt 0:03:47]} Bf8+ {[%emt 0:00:21]} 29. Bc5 {[%emt 0:00:16]} Rc8 {[%emt 0:00:10]} 30. Kb4 {[%emt 0:01:20]} Rb8+ {[%emt 0:00:06]} 31. Ka4 {[%emt 0:00:23]} Rc8 {[%emt 0:02:53]} 32. Kb5 {[%emt 0:00:32]} e4 {[%emt 0:01:49]} 33. a6 {[%emt 0:01:30]} f5 {[%emt 0:03:51]} 34. a7 {[%emt 0:00:38]} f4 {[%emt 0:03:23]} 35. Bxf8 {[%emt 0:00:49]} Rxf8 {[%emt 0:01:50]} 36. Kb6 {[%emt 0:02:41]} e3 {[%emt 0:01:15]} 37. fxe3 {[%emt 0:00:18]} fxe3 {[%emt 0:00:04]} 38. Kb7 {[%emt 0:01:31]} Rf7+ {[%emt 0:01:17]} 39. Rc7 {[%emt 0:00:26]} 1-0

[Event "NOR-chT Eliteserien 2018-19"]
[Site "Norway"]
[Date "2019.03.09"]
[Round "8.22"]
[White "Lundeby, Oyvind Andersen"]
[Black "Tryggestad, Andreas Garberg"]
[Result "0-1"]
[ECO "D00"]
[WhiteElo "2152"]
[BlackElo "2333"]
[Annotator "NA"]
[PlyCount "160"]
[EventDate "2018.11.02"]
[EventType "team-tourn"]
[EventCountry "NOR"]
[SourceTitle "playchess.com"]
[Source "ChessBase"]
[SourceQuality "1"]
[TimeControl "40/5400+30:1800+30"]

1. d4 {[%emt 0:00:00]} Nf6 {[%emt 0:00:00]} 2. Nc3 {[%emt 0:00:14]} d5 {[%emt 0:00:00]} 3. Bg5 {[%emt 0:00:10]} g6 {[%emt 0:00:37]} 4. Nf3 {[%emt 0:02:03]} Bg7 {[%emt 0:00:07]} 5. e3 {[%emt 0:00:37]} O-O {[%emt 0:00:37]} 6. Bd3 {[%emt 0:01:28]} c5 {[%emt 0:05:43]} 7. O-O {[%emt 0:00:51]} b6 {[%emt 0:03:48]} 8. Re1 {[%emt 0:07:39]} Bb7 {[%emt 0:01:58]} 9. Ne5 {[%emt 0:05:00]} Nc6 {[%emt 0:08:10]} 10. Nxc6 {[%emt 0:12:14]} Bxc6 {[%emt 0:00:30]} 11. Bf1 {[%emt 0:03:38]} Re8 {[%emt 0:02:27]} 12. Qd2 {[%emt 0:03:04]} Qd7 {[%emt 0:02:42]} 13. a4 {[%emt 0:02:06]} h6 {[%emt 0:05:05]} 14. Bxf6 {[%emt 0:00:37]} Bxf6 {[%emt 0:00:23]} 15. Bb5 {[%emt 0:02:38]} Rad8 {[%emt 0:03:51]} 16. Rad1 {[%emt 0:07:24]} e6 {[%emt 0:00:41]} 17. Qe2 {[%emt 0:03:59]} Qb7 {[%emt 0:03:13]} 18. Bxc6 {[%emt 0:02:28]} Qxc6 {[%emt 0:00:02]} 19. Qb5 {[%emt 0:00:49]} Qc7 {[%emt 0:01:04]} 20. Rd2 {[%emt 0:03:20]} Bg5 {[%emt 0:14:28]} 21. Rdd1 {[%emt 0:01:37]} Kf8 {[%emt 0:01:42]} 22. a5 {[%emt 0:07:45]} Rb8 {[%emt 0:10:15]} 23. axb6 {[%emt 0:03:57]} Rxb6 {[%emt 0:00:06]} 24. Qa5 {[%emt 0:00:29]} cxd4 {[%emt 0:00:07]} 25. exd4 {[%emt 0:04:53]} Qc6 {[%emt 0:02:07]} 26. Re2 {[%emt 0:08:03]} Be7 {[%emt 0:01:52]} 27. Qa4 {[%emt 0:02:28]} Qb7 {[%emt 0:00:27]} 28. b3 {[%emt 0:00:46]} Ra6 {[%emt 0:04:02]} 29. Qb5 {[%emt 0:00:43]} Qxb5 {[%emt 0:00:18]} 30. Nxb5 {[%emt 0:00:05]} Rc8 {[%emt 0:00:08]} 31. c4 {[%emt 0:02:06]} dxc4 {[%emt 0:00:13]} 32. Rc2 {[%emt 0:00:52]} Ra5 {[%emt 0:00:16]} 33. Rxc4 {[%emt 0:00:24]} Rb8 {[%emt 0:00:41]} 34. Nc3 {[%emt 0:01:45]} Rxb3 {[%emt 0:00:06]} 35. g3 {[%emt 0:01:54]} Rb7 {[%emt 0:05:36]} 36. d5 {[%emt 0:01:38]} exd5 {[%emt 0:20:41]} 37. Rc8+ {[%emt 0:02:13]} Kg7 {[%emt 0:00:02]} 38. Rxd5 {[%emt 0:00:17]} Ra1+ {[%emt 0:00:25]} 39. Kg2 {[%emt 0:01:24]} Rc1 {[%emt 0:00:02]} 40. Rd4 {[%emt 0:01:40]} Bf6 {[%emt 0:03:50]} 41. Rdc4 {[%emt 0:31:12]} Rxc3 {[%emt 0:17:47]} 42. Rxc3 {[%emt 0:00:00]} Bxc3 {[%emt 0:00:03]} 43. Rxc3 {[%emt 0:00:00]} Kf6 {[%emt 0:00:17]} 44. Kf3 {[%emt 0:00:00]} Ke5 {[%emt 0:00:10]} 45. Ke3 {[%emt 0:00:00]} Kd5 {[%emt 0:00:02]} 46. h4 {[%emt 0:00:00]} a5 {[%emt 0:00:46]} 47. Ra3 {[%emt 0:00:00]} Ra7 {[%emt 0:01:46]} 48. Ra4 {[%emt 0:00:00]} Kc5 {[%emt 0:00:12]} 49. Kd3 {[%emt 0:00:00]} Kb5 {[%emt 0:00:07]} 50. Rf4 {[%emt 0:00:00]} Rc7 {[%emt 0:01:18]} 51. Re4 {[%emt 0:00:00]} a4 {[%emt 0:00:11]} 52. Re8 {[%emt 0:00:00]} a3 {[%emt 0:01:13]} 53. Rb8+ {[%emt 0:00:00]} Ka4 {[%emt 0:00:08]} 54. Ra8+ {[%emt 0:00:00]} Kb3 {[%emt 0:00:07]} 55. Rb8+ {[%emt 0:00:00]} Ka2 {[%emt 0:00:07]} 56. Kd2 {[%emt 0:00:00]} Rd7+ {[%emt 0:06:33]} 57. Kc2 {[%emt 0:00:00]} Rd5 {[%emt 0:01:08]} 58. Rb7 {[%emt 0:00:00]} Rf5 {[%emt 0:00:01]} 59. f4 {[%emt 0:00:00]} g5 {[%emt 0:02:34]} 60. fxg5 {[%emt 0:00:00]} hxg5 {[%emt 0:00:01]} 61. hxg5 {[%emt 0:00:25]} Rf2+ {[%emt 0:06:00]} 62. Kc1 {[%emt 0:00:17]} Ka1 {[%emt 0:00:22]} 63. Rb3 {[%emt 0:01:28]} a2 {[%emt 0:00:23]} 64. Rb7 {[%emt 0:03:11]} Rf5 {[%emt 0:00:02]} 65. Rb4 {[%emt 0:05:12]} Rxg5 {[%emt 0:00:10]} 66. g4 {[%emt 0:00:15]} Ra5 {[%emt 0:00:36]} 67. Rc4 {[%emt 0:00:47]} Rb5 {[%emt 0:00:19]} 68. Rc7 {[%emt 0:00:36]} Rb4 {[%emt 0:00:27]} 69. Kc2 {[%emt 0:04:55]} f6 {[%emt 0:01:09]} 70. Rc6 {[%emt 0:00:34]} Rf4 {[%emt 0:00:08]} 71. Rb6 {[%emt 0:00:17]} Rc4+ {[%emt 0:00:29]} 72. Kd2 {[%emt 0:00:15]} Rxg4 {[%emt 0:00:09]} 73. Kc2 {[%emt 0:01:17]} Rg2+ {[%emt 0:00:08]} 74. Kc1 {[%emt 0:00:10]} f5 {[%emt 0:00:03]} 75. Rf6 {[%emt 0:00:09]} Rf2 {[%emt 0:00:06]} 76. Rf7 {[%emt 0:00:35]} f4 {[%emt 0:00:28]} 77. Rf8 {[%emt 0:00:08]} f3 {[%emt 0:00:09]} 78. Rf7 {[%emt 0:00:07]} Rf1+ {[%emt 0:00:20]} 79. Kc2 {[%emt 0:00:08]} f2 {[%emt 0:00:08]} 80. Rf6 {[%emt 0:00:18]} Rb1 {[%emt 0:00:07]} 0-1

[Event "NOR-chT Eliteserien 2018-19"]
[Site "Norway"]
[Date "2019.03.09"]
[Round "8.23"]
[White "Nordquelle, Daniel"]
[Black "Soderstrom, Adrian"]
[Result "1-0"]
[ECO "B77"]
[WhiteElo "2235"]
[BlackElo "2118"]
[Annotator "NA"]
[PlyCount "43"]
[EventDate "2018.11.02"]
[EventType "team-tourn"]
[EventCountry "NOR"]
[SourceTitle "playchess.com"]
[Source "ChessBase"]
[SourceQuality "1"]
[TimeControl "40/5400+30:1800+30"]

1. e4 {[%emt 0:00:00]} c5 {[%emt 0:00:00]} 2. Ne2 {[%emt 0:02:44]} Nf6 {[%emt 0:03:34]} 3. Nbc3 {[%emt 0:00:23]} d6 {[%emt 0:00:14]} 4. d4 {[%emt 0:08:21]} cxd4 {[%emt 0:00:20]} 5. Nxd4 {[%emt 0:00:04]} g6 {[%emt 0:00:19]} 6. f3 {[%emt 0:00:19]} Bg7 {[%emt 0:00:37]} 7. Be3 {[%emt 0:00:06]} O-O {[%emt 0:00:06]} 8. Bc4 {[%emt 0:00:31]} Nc6 {[%emt 0:00:06]} 9. Qd2 {[%emt 0:01:09]} Bd7 {[%emt 0:00:11]} 10. Nd5 {[%emt 0:07:13]} Rc8 {[%emt 0:09:05]} 11. Nxc6 {[%emt 0:06:12]} Bxc6 {[%emt 0:03:16]} 12. O-O-O {[%emt 0:01:12]} Bxd5 {[%emt 0:10:28]} 13. Bxd5 {[%emt 0:00:24]} Nxd5 {[%emt 0:00:09]} 14. exd5 {[%emt 0:03:03]} Rc4 {[%emt 0:08:49]} 15. Bh6 {[%emt 0:11:50]} Bxh6 {[%emt 0:10:12]} 16. Qxh6 {[%emt 0:00:30]} Qa5 {[%emt 0:02:52]} 17. Kb1 {[%emt 0:07:35]} Ra4 {[%emt 0:04:21]} 18. a3 {[%emt 0:00:43]} Rc8 {[%emt 0:04:17]} 19. h4 {[%emt 0:05:42]} Rcc4 {[%emt 0:02:36]} 20. Qe3 {[%emt 0:06:57]} Qc5 {[%emt 0:18:23]} 21. Qxe7 {[%emt 0:10:10]} Rxc2 {[%emt 0:03:47]} 22. Qe8+ {[%emt 0:01:04]} 1-0